bitfinex/quotes_ETHUSD_20251221
["timestamp","ask_amount","ask_price","bid_price","bid_amount"]
[1766323928196,0.3579,2963.0,2961.7,0.192]
[1766323928398,0.3579,2962.8,2961.2,0.192]
[1766323928586,0.03376211,2962.9,2960.5,1.1415]
[1766323928587,0.3579,2962.4,2960.5,1.1415]
[1766323928775,0.3579,2962.2,2960.6,0.03377693]
[1766323928976,0.3579,2962.2,2960.5,1.1415]
[1766323929184,0.3579,2962.2,2960.8,0.9495]
[1766323929389,0.3579,2962.2,2961.1,0.9495]
[1766323929607,0.3579,2962.2,2961.1,1.1415]
[1766323929907,0.3579,2963.1,2961.2,0.9495]
[1766323930112,0.3579,2962.9,2961.2,0.9495]
[1766323930481,0.3579,2962.0,2960.2,0.9495]
[1766323930681,0.3579,2961.8,2960.2,0.9495]
[1766323931009,0.3579,2961.8,2960.3,0.9495]
[1766323931208,0.3579,2961.6,2959.9,0.002]
[1766323931593,0.3579,2961.6,2959.9,0.3493]
[1766323931784,0.3579,2961.6,2960.0,0.9495]
[1766323931985,0.3579,2961.6,2960.1,0.3473]
[1766323932290,0.3579,2962.5,2960.6,0.9495]
[1766323932499,0.3579,2962.3,2960.6,0.9495]
[1766323932710,0.3579,2962.1,2960.6,0.9495]
[1766323933102,0.03476211,2962.7,2960.9,0.3473]
[1766323933280,0.3579,2962.6,2961.1,0.9495]
[1766323933604,0.3579,2962.4,2961.0,0.192]
[1766323933802,0.3579,2962.4,2961.3,0.9495]
[1766323934003,0.001,2962.7,2961.4,0.3473]
[1766323934204,0.001,2962.7,2961.6,0.9495]
[1766323934800,0.3579,2962.6,2961.6,0.9495]
[1766323935293,0.3579,2962.4,2960.5,0.9495]
[1766323935493,0.001,2962.7,2960.5,0.9495]
[1766323935494,0.3579,2962.2,2960.5,0.9495]
[1766323935719,0.3579,2962.0,2960.5,0.9495]
[1766323935921,0.3579,2961.8,2960.2,0.192]
[1766323936092,0.3579,2961.6,2960.2,1.1415]
[1766323936293,0.02365025,2962.4,2960.2,1.1415]
[1766323936294,0.3579,2961.4,2960.2,1.1415]
[1766323936527,0.3579,2961.4,2960.3,0.9495]
[1766323936915,0.3579,2961.4,2960.2,0.192]
[1766323937234,0.3579,2961.2,2959.7,0.9525]
[1766323937436,0.3579,2961.0,2959.7,0.9525]
[1766323937640,0.3579,2961.9,2959.7,0.003]
[1766323937797,0.38155025,2961.6,2959.7,0.003]
[1766323937997,0.38155025,2961.4,2959.7,0.003]
[1766323938194,0.02365025,2961.0,2959.7,0.003]
[1766323938503,0.3579,2960.2,2958.2,0.9495]
[1766323938703,0.3579,2960.0,2958.3,0.9495]
[1766323938903,0.3579,2960.0,2959.9,0.002]
[1766323939513,0.3579,2960.7,2958.7,0.194]
[1766323939731,0.3579,2960.5,2958.7,0.9515]
[1766323940029,0.3579,2960.3,2958.8,0.9495]
[1766323940325,0.02365025,2960.7,2958.8,0.9495]
[1766323940326,0.3579,2960.1,2958.8,0.9495]
[1766323940530,0.02365025,2961.4,2959.1,0.3473]
[1766323940733,0.3579,2961.3,2959.4,0.9495]
[1766323940930,0.38155025,2961.1,2958.9,0.21465025]
[1766323941225,0.38155025,2961.1,2959.2,0.9495]
[1766323941226,0.3579,2960.9,2959.2,0.9495]
[1766323941431,0.3579,2960.9,2959.4,0.9495]
[1766323941631,0.3579,2960.7,2958.7,0.002]
[1766323941960,0.3579,2960.0,2958.7,0.002]
[1766323942236,0.3579,2959.8,2958.7,0.002]
[1766323942607,0.3579,2959.8,2958.2,0.9495]
[1766323942808,0.3579,2959.8,2958.2,0.3473]
[1766323943007,0.3579,2959.8,2958.3,0.9495]
[1766323943713,0.3579,2959.8,2957.9,0.191]
[1766323943912,0.3579,2959.6,2957.9,1.1405]
[1766323944102,0.3579,2959.6,2958.1,0.9495]
[1766323944305,0.3579,2959.4,2957.6,0.9495]
[1766323944506,0.3579,2959.2,2957.6,0.9495]
[1766323944707,0.3579,2959.0,2957.4,0.9495]
[1766323945000,0.3579,2958.8,2957.4,0.9495]
[1766323945205,0.02365025,2958.2,2955.0,0.17505143]
[1766323945426,0.02365025,2958.2,2953.6,4.21949587]
[1766323945427,0.3579,2956.1,2951.5,5.97158055]
[1766323945625,0.02365025,2956.2,2951.8,0.02365025]
[1766323945626,0.02365025,2955.5,2951.8,0.02365025]
[1766323945844,0.2,2955.3,2951.3,0.02365025]
[1766323946005,0.02365025,2952.7,2951.3,1.2968]
[1766323946201,7.318664,2953.4,2951.0,0.00576094]
[1766323946533,3.744297,2953.2,2951.1,0.02365025]
[1766323946735,3.15215,2953.2,2951.0,0.00576094]
[1766323946951,12.821295,2953.3,2951.0,0.00576094]
[1766323947239,0.02365025,2954.0,2951.0,0.00576094]
[1766323947240,0.2,2955.4,2952.2,0.02365025]
[1766323947406,8.741018,2954.7,2952.5,0.02365025]
[1766323947611,1.15993911,2954.6,2952.5,0.02365025]
[1766323947923,10.68940625,2954.5,2952.0,1.2968]
[1766323948112,0.263,2954.4,2952.0,0.9495]
[1766323948313,0.02365025,2955.1,2952.2,1.2968]
[1766323948517,1.24093801,2957.6,2949.9,0.02365025]
[1766323948518,0.02365025,2953.8,2951.1,0.3473]
[1766323948707,0.04231407,2954.1,2951.7,0.2]
[1766323948907,0.3053112,2954.3,2951.8,0.37095025]
[1766323949106,5.78818,2954.7,2952.1,0.3473]
[1766323949415,4.151,2954.5,2952.1,0.3473]
[1766323949615,12.11548225,2954.3,2952.1,0.3473]
[1766323949814,12.11548225,2954.3,2949.7,0.02365025]
[1766323949815,12.21877,2954.1,2951.4,0.37095025]
[1766323950017,4.555809,2953.9,2951.6,0.02365025]
[1766323950321,0.02365025,2954.4,2951.7,0.37095025]
[1766323950528,30.0,2952.8,2949.9,1.2968]
[1766323950735,0.04233413,2952.7,2950.2,0.02365025]
[1766323950939,1.64724746,2954.3,2951.2,0.02365025]
[1766323951125,5.8580022,2955.7,2951.2,0.02365025]
[1766323951126,0.02365025,2956.6,2954.0,0.02365025]
[1766323951308,3.116044,2956.3,2953.9,0.02365025]
[1766323951512,30.0,2957.0,2954.3,0.36875025]
[1766323951759,0.02365025,2958.0,2955.2,0.02365025]
[1766323952047,0.263,2957.2,2955.4,0.02365025]
[1766323952248,0.04227114,2957.1,2955.2,0.36875025]
[1766323952449,0.02365025,2957.8,2954.3,0.3451]
[1766323952450,0.04227257,2957.0,2954.3,0.3451]
[1766323952650,7.193705,2956.6,2954.4,0.03384782]
[1766323952812,16.161422,2956.4,2953.9,0.3451]
[1766323953017,0.06593283,2956.3,2953.9,0.3451]
[1766323953215,0.06593283,2956.3,2953.6,0.02365025]
[1766323953216,9.419015,2955.6,2953.6,0.02365025]
[1766323953417,0.72173552,2956.5,2953.6,0.02365025]
[1766323953418,0.263,2956.4,2954.1,1.3287]
[1766323953653,16.164019,2956.2,2953.8,0.02365025]
[1766323953854,16.391366,2956.0,2953.9,0.9836]
[1766323954019,16.391366,2956.0,2953.8,0.02365025]
[1766323954020,0.0422883,2955.9,2954.2,0.3451]
[1766323954215,0.04228115,2956.4,2954.4,0.3451]
[1766323954417,3.27468,2957.8,2955.2,1.00725025]
[1766323954617,0.36973056,2957.7,2955.8,0.9836]
[1766323954818,0.04226256,2957.7,2955.6,0.02365025]
[1766323955022,0.04225256,2958.4,2956.2,1.0337]
[1766323955278,24.245592,2958.3,2956.2,1.0337]
[1766323955420,19.813943,2958.1,2956.2,1.0337]
[1766323955621,7.909553,2957.9,2956.2,1.0337]
[1766323955932,8.609003,2957.7,2955.8,0.3538]
[1766323956130,0.79518113,2957.8,2955.8,1.3875]
[1766323956327,0.02365025,2956.7,2954.1,0.3538]
[1766323956527,0.02365025,2956.1,2954.4,1.3875]
[1766323957024,0.06593712,2956.0,2954.4,1.3875]
[1766323957250,30.0,2955.7,2953.6,1.3875]
[1766323957452,0.2,2956.6,2953.7,0.05750609]
[1766323957453,30.0,2956.5,2953.7,0.05750609]
[1766323957746,3.04866503,2956.4,2954.8,1.0337]
[1766323957946,12.232594,2956.9,2954.8,1.3875]
[1766323958163,0.02365025,2956.4,2954.0,1.3875]
[1766323958319,12.83114825,2956.2,2954.0,1.3875]
[1766323958520,2.087812,2956.5,2954.3,0.3538]
[1766323958756,2.087812,2956.5,2954.1,0.0575015]
[1766323958757,6.437659,2958.2,2955.0,0.02365025]
[1766323958918,0.02365025,2957.1,2954.7,0.3538]
[1766323959267,0.02365025,2957.1,2954.3,1.3875]
[1766323959268,22.550789,2956.4,2954.3,1.3875]
[1766323959564,17.64835,2956.2,2954.6,0.002]
[1766323959713,2.25744393,2956.3,2954.7,1.3875]
[1766323959919,0.02365025,2956.7,2954.6,0.002]
[1766323959920,0.02365025,2956.0,2954.6,0.002]
[1766323960226,0.06593426,2956.2,2954.6,0.002]
[1766323960227,0.02365025,2956.2,2954.6,0.002]
[1766323960423,0.02365025,2956.0,2954.6,0.002]
[1766323960665,21.365894,2955.9,2954.6,0.002]
[1766323961176,0.02365025,2955.6,2953.6,1.0337]
[1766323961324,0.02365025,2955.6,2953.8,1.3875]
[1766323961325,0.04229402,2955.5,2953.8,1.3875]
[1766323961750,0.04229402,2955.5,2953.5,0.191]
[1766323961751,0.02365025,2954.9,2953.5,0.191]
[1766323961951,0.02365025,2954.7,2953.1,1.3875]
[1766323962153,0.02365025,2954.2,2951.4,1.3875]
[1766323962455,0.02365025,2953.6,2951.5,1.0337]
[1766323962657,0.04231693,2953.9,2952.0,0.3538]
[1766323962855,0.04231693,2953.9,2951.5,0.02365025]
[1766323962856,0.02365025,2956.9,2952.7,1.0337]
[1766323963057,0.02365025,2956.9,2952.6,0.02365025]
[1766323963058,2.784664,2955.7,2953.4,1.0337]
[1766323963264,0.28083143,2955.6,2954.0,1.0337]
[1766323963429,0.06593283,2956.3,2954.3,0.3538]
[1766323963634,0.06593283,2956.3,2953.7,0.02365025]
[1766323963635,0.02365025,2956.9,2954.6,0.3538]
[1766323963829,0.02365025,2956.9,2955.0,0.3538]
[1766323963830,0.04227829,2956.6,2955.0,0.3538]
[1766323964136,16.36173097,2956.5,2954.5,0.3538]
[1766323964328,1.27606513,2956.6,2954.1,0.02365025]
[1766323964530,0.02365025,2955.8,2954.2,0.3538]
[1766323964729,0.02365025,2955.6,2953.8,1.0337]
[1766323964963,0.02365025,2955.6,2953.6,0.3538]
[1766323964964,0.02365025,2955.2,2953.6,0.3538]
[1766323965290,0.02365025,2954.7,2953.2,0.9837]
[1766323965563,0.02365025,2953.7,2951.9,0.3538]
[1766323965729,0.04231263,2954.2,2951.8,0.3538]
[1766323965934,0.02365025,2954.7,2952.2,0.3538]
[1766323966130,0.02365025,2954.3,2952.2,0.3538]
[1766323966327,0.02365025,2954.5,2952.4,0.3538]
[1766323966548,0.02365025,2954.6,2952.5,0.0338696]
[1766323966762,0.0659457,2955.4,2952.7,0.3538]
[1766323967068,0.0422883,2955.9,2953.1,0.3538]
[1766323967251,0.02365025,2955.8,2953.5,0.3538]
[1766323967451,6.299522,2956.2,2953.9,0.3538]
[1766323967653,0.02365025,2956.3,2954.2,1.0337]
[1766323967654,0.02365025,2955.6,2954.2,1.0337]
[1766323967833,0.04229402,2955.5,2954.2,1.0337]
[1766323968029,0.04229402,2955.5,2953.6,0.191]
[1766323968242,0.02365025,2955.8,2953.3,0.191]
[1766323968563,0.02365025,2956.1,2954.1,1.0337]
[1766323968862,0.02365025,2955.4,2953.9,0.002]
[1766323969241,0.02365025,2956.1,2954.0,1.0337]
[1766323969550,0.04228687,2956.0,2954.5,0.3538]
[1766323969738,0.02365025,2956.6,2955.0,1.0337]
[1766323969739,0.04227829,2956.6,2955.0,1.0337]
[1766323969938,0.02365025,2956.9,2954.7,1.0337]
[1766323970144,0.02365025,2956.3,2954.5,1.0337]
[1766323970479,0.02365025,2956.9,2954.6,0.03384552]
[1766323970673,0.02365025,2956.9,2954.0,1.0337]
[1766323970674,0.02365025,2956.0,2954.0,1.0337]
[1766323970833,0.06593855,2955.9,2953.9,0.002]
[1766323971035,0.02365025,2956.7,2954.2,0.3538]
[1766323971234,0.40972719,2956.9,2954.8,0.3538]
[1766323971466,0.02365025,2956.8,2955.2,1.3875]
[1766323971833,0.02365025,2956.6,2955.2,1.3875]
[1766323972070,0.04227972,2956.5,2955.2,1.3875]
[1766323972366,0.04227972,2956.5,2953.9,0.002]
[1766323972367,0.02365025,2956.0,2954.1,0.3538]
[1766323972565,0.0422883,2955.9,2954.4,1.0337]
[1766323972771,0.02365025,2955.9,2954.4,1.0337]
[1766323972939,0.06593855,2955.9,2954.4,1.0337]
[1766323973134,4.04997142,2956.6,2954.8,1.0337]
[1766323973363,0.04227972,2956.5,2955.3,1.3875]
[1766323973536,0.02365025,2956.5,2955.3,1.3875]
[1766323973739,0.04227686,2956.7,2955.3,1.3875]
[1766323973953,4.04997142,2956.9,2954.9,0.03384209]
[1766323974156,4.04997142,2957.3,2955.5,1.0337]
[1766323974355,4.04997142,2957.3,2954.9,0.02365025]
[1766323974356,0.40499714,2957.2,2956.0,0.3538]
[1766323974543,0.40499714,2957.2,2954.9,0.22365025]
[1766323974544,0.44726685,2957.2,2954.9,0.22365025]
[1766323974757,0.04227114,2957.1,2955.4,0.3538]
[1766323974977,4.04997142,2957.7,2955.9,1.0337]
[1766323975180,0.04326399,2957.6,2956.0,0.191]
[1766323975486,0.001,2957.6,2956.3,1.3875]
[1766323975686,0.001,2957.6,2956.0,0.191]
[1766323976089,0.001,2957.6,2956.4,1.0337]
[1766323976273,0.001,2957.6,2956.6,1.3875]
[1766323976471,0.001,2957.6,2956.0,1.5785]
[1766323976667,0.001,2957.6,2955.9,0.3538]
[1766323976990,0.02365025,2957.5,2956.0,0.3538]
[1766323977178,0.02365025,2957.5,2955.7,1.0337]
[1766323977179,0.02365025,2957.1,2955.7,1.0337]
[1766323977500,0.02365025,2956.9,2954.8,0.191]
[1766323977794,4.04997142,2957.3,2954.9,0.05749234]
[1766323977991,0.42864739,2957.2,2955.2,1.3875]
[1766323978160,0.40499714,2957.2,2955.5,1.0337]
[1766323978359,4.09223684,2957.5,2956.1,1.0337]
[1766323978564,0.02365025,2957.2,2955.8,0.3538]
[1766323978798,0.02365025,2957.2,2955.7,1.0337]
[1766323979092,4.07362167,2957.3,2955.7,1.0337]
[1766323979388,0.02365025,2957.1,2955.7,1.0337]
[1766323979595,0.45386171,2957.0,2955.7,1.0337]
[1766323979793,0.02365025,2956.7,2955.3,0.3538]
[1766323980091,0.04227829,2956.6,2955.0,1.0337]
[1766323980393,0.02365025,2956.3,2954.8,0.9088]
[1766323980594,0.02365025,2956.9,2954.8,0.9088]
[1766323980595,5.8580022,2957.5,2955.5,1.0337]
[1766323980786,0.02365025,2957.4,2955.5,1.3875]
[1766323980982,0.001,2957.6,2955.6,0.03383407]
[1766323981158,0.001,2957.6,2954.8,1.11]
[1766323981159,0.02365025,2957.3,2954.8,1.11]
[1766323981363,0.02365025,2957.1,2955.3,0.3538]
[1766323981657,0.02365025,2957.1,2954.9,0.191]
[1766323981658,0.001,2957.6,2955.4,0.05748661]
[1766323981862,0.001,2957.6,2956.1,1.0337]
[1766323982091,0.001,2957.6,2955.2,1.3875]
[1766323982092,0.02365025,2956.7,2955.2,1.3875]
[1766323982395,0.02365025,2956.3,2954.9,1.3875]
[1766323982561,0.02365025,2956.1,2954.9,1.3875]
[1766323982766,5.8580022,2957.1,2955.0,0.3538]
[1766323982967,0.02365025,2957.7,2955.4,0.3538]
[1766323983286,0.02365025,2957.7,2955.0,0.03384094]
[1766323983287,0.02365025,2957.5,2955.0,0.03384094]
[1766323983465,0.02365025,2957.5,2955.0,1.3875]
[1766323983466,0.04226685,2957.4,2955.0,1.3875]
[1766323983664,0.02365025,2957.5,2955.2,1.3875]
[1766323983906,0.02365025,2957.4,2955.8,1.0337]
[1766323984228,0.02365025,2957.4,2954.9,0.80475]
[1766323984229,0.02365025,2956.2,2954.9,0.80475]
[1766323984503,0.04228115,2956.4,2954.1,0.002]
[1766323984678,0.02365025,2955.9,2954.5,0.3538]
[1766323984877,0.02365025,2955.9,2954.5,1.3875]
[1766323985073,0.04228973,2955.8,2954.5,1.3875]
[1766323985383,0.02365025,2955.7,2954.1,0.002]
[1766323985682,0.02365025,2955.7,2954.1,1.5155]
[1766323985871,0.02365025,2955.7,2954.1,0.002]
[1766323986060,0.02365025,2958.1,2954.7,0.3852]
[1766323986262,0.02365025,2958.1,2954.9,0.3852]
[1766323986263,0.58816525,2956.5,2954.9,0.3852]
[1766323986572,0.02365025,2955.8,2954.5,0.555]
[1766323986775,3.028826,2956.0,2954.5,0.555]
[1766323986998,0.02365025,2956.1,2954.5,0.555]
[1766323987308,0.02365025,2956.3,2954.5,2.0685]
[1766323987530,0.02365025,2956.0,2954.5,0.555]
[1766323987709,0.0422883,2955.9,2954.5,0.555]
[1766323988031,0.02365025,2956.5,2954.5,0.555]
[1766323988032,5.88165245,2956.9,2954.6,0.03384552]
[1766323988304,0.001,2956.6,2955.1,0.3852]
[1766323988468,0.04327829,2956.6,2955.0,0.3852]
[1766323988667,0.001,2956.6,2955.2,0.3852]
[1766323988870,0.001,2956.6,2954.6,0.77984552]
[1766323989181,0.001,2956.6,2954.7,1.5135]
[1766323989385,0.001,2956.6,2954.8,1.1283]
[1766323989604,0.02259893,2956.5,2955.1,1.5135]
[1766323989811,0.04228115,2956.4,2955.1,1.7045]
[1766323990013,0.02259893,2956.3,2954.8,0.191]
[1766323990212,0.02259893,2956.3,2955.0,0.3852]
[1766323990506,0.001,2956.6,2955.7,1.1283]
[1766323990717,0.001,2956.6,2955.8,0.5762]
[1766323990915,0.001,2957.6,2955.9,1.1283]
[1766323991099,0.001,2957.6,2956.2,1.1283]
[1766323991302,0.001,2957.6,2955.8,0.36145]
[1766323991303,0.001,2957.6,2955.8,0.38510025]
[1766323991502,0.001,2957.6,2956.2,0.3852]
[1766323991816,0.001,2957.6,2955.9,0.191]
[1766323992026,0.001,2957.6,2956.2,1.1283]
[1766323992318,0.001,2957.6,2956.9,0.3852]
[1766323992522,7.61718837,2959.3,2957.4,1.1283]
[1766323992818,0.76408386,2959.2,2958.1,0.3852]
[1766323992979,6.18588075,2960.1,2958.3,1.5135]
[1766323993179,5.8580022,2960.1,2958.6,0.3852]
[1766323993503,2.081161,2960.4,2958.1,0.191]
[1766323993690,0.001,2960.9,2959.3,0.3852]
[1766323993894,0.001,2960.9,2959.6,1.5135]
[1766323994195,0.001,2960.9,2959.3,1.3193]
[1766323994382,0.001,2960.9,2959.7,0.3852]
[1766323994581,0.001,2960.9,2959.7,1.7045]
[1766323995009,0.001,2960.9,2958.9,0.02365025]
[1766323995312,0.001,2960.9,2959.1,1.5135]
[1766323995512,0.001,2960.9,2958.7,0.02365025]
[1766323995513,0.001,2960.9,2960.7,0.02365025]
[1766323995703,0.001,2962.7,2960.8,0.03377465]
[1766323995893,3.714058,2962.0,2959.3,0.02365025]
[1766323996081,0.04220264,2961.9,2959.8,0.02365025]
[1766323996282,17.083036,2961.7,2959.3,0.02365025]
[1766323996519,30.0,2961.5,2959.2,1.53715025]
[1766323996690,30.0,2961.3,2959.2,1.53715025]
[1766323996890,0.001,2960.9,2959.2,1.53715025]
[1766323997110,0.001,2960.9,2959.4,0.02365025]
[1766323997308,30.02365025,2960.8,2959.1,0.555]
[1766323997518,30.02365025,2960.8,2958.4,1.5135]
[1766323997519,30.0,2960.6,2958.4,1.5135]
[1766323997726,30.0,2960.4,2958.4,1.5135]
[1766323997927,30.0,2960.2,2958.4,1.5135]
[1766323998098,14.422911,2960.0,2959.1,0.555]
[1766323998294,3.00668671,2960.7,2959.1,0.555]
[1766323998494,0.04221831,2960.8,2959.1,0.555]
[1766323998696,0.04221831,2960.8,2959.1,2.0685]
[1766323998939,0.263,2960.9,2959.2,1.5135]
[1766323999240,0.04221831,2960.8,2959.2,1.5135]
[1766323999442,0.02365025,2960.4,2957.6,1.5135]
[1766323999600,30.0,2959.7,2957.6,1.5135]
[1766323999793,18.034737,2959.5,2957.8,1.5135]
[1766324000040,17.008423,2959.5,2958.1,1.5135]
[1766324000393,17.008423,2959.5,2957.7,0.02365025]
[1766324000593,0.04223829,2959.4,2958.1,0.555]
[1766324000807,0.34669862,2959.4,2958.1,0.555]
[1766324001021,0.04223829,2959.4,2958.1,0.555]
[1766324001351,30.0,2959.3,2957.5,0.555]
[1766324001499,30.0,2959.0,2956.5,0.3852]
[1766324001700,19.514116,2958.8,2957.0,0.3852]
[1766324001899,22.217192,2958.6,2956.8,0.191]
[1766324002221,1.9776116,2958.7,2956.9,1.5135]
[1766324002531,30.0,2958.5,2956.3,1.5135]
[1766324002732,21.862346,2958.3,2956.3,1.7045]
[1766324002934,8.225903,2958.1,2956.3,1.7045]
[1766324003140,30.0,2958.5,2956.3,2.2595]
[1766324003309,3.02856503,2958.4,2956.8,0.3852]
[1766324003509,0.02365025,2959.3,2956.6,0.02365025]
[1766324003510,6.430774,2959.2,2957.0,1.5135]
[1766324003810,0.22365025,2960.6,2957.7,1.1283]
[1766324004016,7.015779,2960.0,2957.8,0.191]
[1766324004340,4.677329,2960.5,2958.5,1.5135]
[1766324004628,30.0,2960.3,2958.5,1.7045]
[1766324004830,3.07264927,2960.2,2958.5,1.7045]
[1766324004999,0.001,2960.9,2958.6,0.05745002]
[1766324005198,11.85494125,2960.8,2958.6,1.5223]
[1766324005421,11.85494125,2960.8,2958.5,0.191]
[1766324005422,15.65641,2960.6,2958.5,0.191]
[1766324005613,0.001,2959.3,2958.8,1.5223]
[1766324005932,0.04222259,2960.5,2958.8,1.5223]
[1766324006254,0.04322259,2960.5,2958.8,1.1337]
[1766324006418,0.001,2960.5,2959.2,1.5223]
[1766324006731,0.001,2960.5,2959.3,0.03379177]
[1766324007031,0.001,2960.5,2959.6,0.3886]
[1766324007234,0.001,2960.5,2959.7,1.5223]
[1766324007423,0.001,2960.9,2959.3,0.05744202]
[1766324008002,0.001,2960.9,2959.6,1.1337]
[1766324008203,0.001,2960.9,2960.0,1.1337]
[1766324008429,0.001,2960.9,2959.5,0.02365025]
[1766324008430,0.001,2960.9,2960.2,1.5223]
[1766324008931,0.001,2960.9,2959.3,0.57865025]
[1766324009232,0.02365025,2960.6,2959.3,0.555]
[1766324009402,0.3454306,2960.6,2959.3,0.555]
[1766324009736,0.263,2960.9,2959.3,2.0773]
[1766324010032,0.04221831,2960.8,2959.3,2.0773]
[1766324010200,30.02365025,2960.7,2959.3,0.555]
[1766324010401,0.04222117,2960.6,2959.3,1.11]
[1766324010601,0.262,2960.8,2959.3,1.11]
[1766324010826,8.997395,2960.6,2959.3,1.11]
[1766324011123,0.90396147,2960.5,2959.3,1.11]
[1766324011308,0.001,2960.9,2959.5,1.5223]
[1766324011704,0.02365025,2962.6,2959.6,0.05743859]
[1766324011929,0.02365025,2962.0,2959.9,1.5223]
[1766324012097,0.04220264,2961.9,2959.9,1.5223]
[1766324012305,0.02365025,2961.4,2959.3,1.11]
[1766324012527,0.02365025,2961.1,2959.3,1.11]
[1766324012729,3.00658614,2961.1,2959.7,0.3886]
[1766324012928,16.255718,2961.8,2959.4,0.21465025]
[1766324013153,0.262,2962.0,2959.3,1.665]
[1766324013154,0.2,2961.3,2959.3,1.665]
[1766324013331,30.0,2961.1,2959.3,1.665]
[1766324013651,16.593255,2960.9,2959.3,1.665]
[1766324013858,1.73196536,2960.8,2959.3,1.665]
[1766324014042,30.0,2960.7,2958.2,1.5223]
[1766324014244,28.734929,2960.5,2958.2,1.7133]
[1766324014556,2.892,2960.3,2958.3,0.02365025]
[1766324014757,0.2934224,2960.2,2958.5,2.0773]
[1766324014938,0.0422283,2960.1,2958.5,2.6323]
[1766324015136,2.928084,2960.6,2958.5,1.11]
[1766324015339,0.262,2960.5,2958.7,0.4305]
[1766324015656,0.262,2960.5,2958.6,1.5911]
[1766324015854,0.262,2960.5,2958.5,1.13365025]
[1766324016056,12.517593,2960.6,2958.7,1.5911]
[1766324016266,15.927683,2960.3,2958.5,1.11]
[1766324016445,10.476127,2960.3,2958.5,1.11]
[1766324016626,16.742483,2960.1,2958.5,1.11]
[1766324016826,8.546578,2960.3,2958.5,1.11]
[1766324017039,2.622853,2960.1,2958.5,1.11]
[1766324017353,0.26650799,2960.0,2958.5,2.7011]
[1766324017539,0.262,2960.2,2958.5,3.2561]
[1766324017742,0.262,2960.2,2958.6,1.5911]
[1766324018555,0.262,2960.3,2958.5,1.58982897]
[1766324018932,0.262,2960.3,2958.7,1.5911]
[1766324019254,0.04222687,2960.2,2958.6,1.1606]
[1766324019458,0.001,2961.1,2958.9,0.4305]
[1766324019658,14.334578,2961.0,2959.1,1.5911]
[1766324019857,0.001,2961.1,2958.8,0.192]
[1766324019858,30.0,2960.8,2958.8,0.192]
[1766324020058,27.368421,2960.6,2958.9,0.555]
[1766324020361,18.688158,2960.4,2958.5,1.58982897]
[1766324020659,12.591946,2960.2,2958.5,1.58982897]
[1766324020856,4.044029,2960.0,2958.5,1.58982897]
[1766324021051,16.261008,2960.1,2958.5,1.58982897]
[1766324021252,1.63032349,2960.0,2958.5,1.58982897]
[1766324021560,4.61081,2961.0,2958.9,0.4305]
[1766324021859,4.831606,2960.8,2959.2,0.02365025]
[1766324022048,0.04221974,2960.7,2959.2,0.6225]
[1766324022233,0.04221546,2961.0,2959.2,0.6225]
[1766324022433,0.04221546,2961.0,2958.5,1.58982897]
[1766324022434,30.0,2960.7,2958.5,1.58982897]
[1766324022630,13.686375,2960.3,2958.5,1.58982897]
[1766324022864,0.02365025,2960.4,2958.5,1.58982897]
[1766324022865,16.735442,2960.1,2958.5,1.58982897]
[1766324023053,9.499503,2959.9,2958.5,1.58982897]
[1766324023252,0.30423258,2959.8,2958.5,1.58982897]
[1766324023773,0.06587427,2960.4,2958.5,1.58982897]
[1766324024068,0.262,2959.7,2958.5,1.59182897]
[1766324024430,0.04223543,2959.6,2958.5,1.59182897]
[1766324024634,0.262,2959.7,2958.5,1.59182897]
[1766324024963,3.1915,2959.6,2958.5,2.14682897]
[1766324026042,0.262,2959.5,2958.5,2.14682897]
[1766324026365,0.30423686,2959.5,2957.5,1.7851]
[1766324026553,0.04223829,2959.4,2957.5,1.96361]
[1766324026751,0.04223829,2959.4,2957.6,1.5911]
[1766324026950,0.262,2959.3,2957.8,1.1606]
[1766324027134,18.522962,2959.8,2957.8,0.555]
[1766324027334,5.50427,2959.6,2958.0,1.5911]
[1766324027584,0.04223686,2959.5,2958.1,1.5911]
[1766324027781,0.262,2959.7,2958.1,1.1606]
[1766324027947,0.04223543,2959.6,2958.1,1.5911]
[1766324028147,0.04222687,2960.2,2958.1,1.1606]
[1766324028347,7.021286,2960.0,2958.4,1.5911]
[1766324028649,0.7283286,2959.9,2958.4,1.5911]
[1766324028849,0.262,2960.1,2957.8,2.1461]
[1766324029075,0.262,2960.1,2957.9,1.7831]
[1766324029076,30.0,2959.9,2957.9,1.7831]
[1766324029281,30.0,2959.7,2957.9,1.7831]
[1766324029449,0.02365025,2960.0,2957.9,1.7831]
[1766324029645,0.22365025,2960.4,2958.2,1.5911]
[1766324029646,0.262,2959.9,2958.2,1.5911]
[1766324029946,0.262,2959.9,2958.0,0.23381]
[1766324030150,0.04222402,2960.4,2958.5,1.1606]
[1766324030347,0.001,2960.6,2959.1,1.1606]
[1766324030566,0.001,2960.6,2958.1,0.02365025]
[1766324030567,0.001,2960.6,2959.4,1.5911]
[1766324032282,0.04322117,2960.6,2959.4,2.1461]
[1766324032783,0.001,2961.1,2960.1,1.1606]
[1766324032988,0.001,2961.1,2960.1,1.5911]
[1766324033482,0.001,2961.1,2960.2,1.1606]
[1766324033669,0.001,2961.1,2960.4,1.5911]
[1766324033849,0.001,2961.1,2960.5,1.5911]
[1766324034500,0.001,2961.1,2959.5,0.05743974]
[1766324034661,0.001,2961.1,2959.6,0.193]
[1766324034860,0.001,2961.1,2959.8,0.4305]
[1766324035161,0.001,2961.1,2959.9,0.193]
[1766324035479,0.001,2961.1,2959.4,0.555]
[1766324035682,0.001,2961.1,2959.5,0.193]
[1766324035885,0.001,2961.1,2959.8,1.1606]
[1766324036068,0.001,2961.1,2959.5,0.193]